bitfinex/quotes_ETHUSD_20220213
["timestamp","ask_amount","ask_price","bid_price","bid_amount"]
[1644794129571,1.0,2878.9,2877.7,0.86901]
[1644794129572,0.00388682,2878.2,2877.7,0.86901]
[1644794129876,0.00388682,2878.5,2877.8,0.00446314]
[1644794130071,0.00388682,2878.8,2877.8,1.0379641]
[1644794130273,0.85624181,2879.0,2877.8,2.3379641]
[1644794130570,0.85624181,2879.0,2878.3,0.86886]
[1644794130822,0.00692572,2878.5,2878.3,0.86886]
[1644794131019,0.00692572,2878.5,2878.3,1.16886]
[1644794131219,0.00692572,2878.5,2878.1,0.86887]
[1644794131422,0.00692572,2878.5,2877.5,0.1736]
[1644794131423,0.1736,2878.4,2877.5,0.1736]
[1644794131621,0.00388682,2878.3,2877.5,0.1736]
[1644794131819,0.1736,2878.2,2877.5,0.1736]
[1644794132219,1.14772787,2878.0,2877.5,0.1736]
[1644794133021,0.00388682,2878.3,2877.5,0.1736]
[1644794133220,0.17748682,2878.6,2877.5,0.1736]
[1644794133426,0.01137814,2878.4,2877.6,0.01138125]
[1644794133623,0.1736,2878.3,2877.6,0.01138125]
[1644794133824,0.00388682,2878.2,2877.6,0.01138125]
[1644794134022,0.1736,2878.1,2877.6,0.01138125]
[1644794134486,0.00388682,2878.0,2877.6,3.5]
[1644794134674,0.00388682,2878.0,2877.7,0.0113811]
[1644794134875,0.17748682,2878.1,2877.7,0.0113811]
[1644794135474,0.17748682,2878.1,2877.6,3.8]
[1644794135680,4.87682067,2878.1,2877.6,3.5]
[1644794135878,1.04677682,2878.1,2877.6,3.5]
[1644794136080,1.04677682,2878.1,2877.6,3.8]
[1644794136475,0.17748682,2878.1,2877.6,3.8]
[1644794136879,0.00388682,2878.1,2877.6,3.8]
[1644794137076,0.00691986,2878.4,2877.6,3.8]
[1644794137276,0.00388682,2878.2,2877.6,3.8]
[1644794137475,0.1736,2878.3,2877.6,3.8]
[1644794137676,1.08020474,2878.2,2877.6,3.8]
[1644794138077,0.00388682,2878.2,2877.6,3.8]
[1644794138321,0.88055372,2878.4,2877.8,0.01137624]
[1644794138518,0.00388682,2878.3,2877.8,0.01137624]
[1644794139125,0.00388682,2878.3,2877.6,4.95846329]
[1644794139423,7.03931733,2879.3,2877.8,21.18033648]
[1644794139424,0.01137396,2878.4,2877.8,21.18033648]
[1644794139621,0.04549001,2878.8,2878.0,20.3]
[1644794139821,0.04549001,2878.8,2878.2,20.3]
[1644794140022,0.04549001,2878.8,2878.3,0.86881]
[1644794140419,0.85866914,2879.2,2878.3,1.16881]
[1644794140820,0.1736,2879.1,2878.3,0.3]
[1644794141021,0.00388682,2879.0,2878.3,0.3]
[1644794141227,0.00388682,2879.0,2878.0,3.3052]
[1644794141423,0.00388682,2879.0,2878.0,4.17417]
[1644794141623,0.1736,2878.9,2878.0,3.3052]
[1644794141822,0.00388682,2878.8,2878.0,3.3052]
[1644794142476,0.00388682,2878.8,2878.0,4.17417]
[1644794142677,0.17748682,2879.1,2878.1,1.91439187]
[1644794142877,0.00388682,2879.1,2878.2,0.86886]
[1644794143079,7.861e-05,2878.5,2878.4,20.3]
[1644794143274,7.861e-05,2878.5,2878.4,23.0374419]
[1644794143781,7.861e-05,2878.5,2878.4,23.3374419]
[1644794143977,0.00388682,2879.4,2878.4,23.3374419]
[1644794144178,0.00388682,2879.4,2878.4,0.3]
[1644794144179,1.05822884,2879.4,2878.4,0.3]
[1644794144380,1.04736041,2879.3,2878.6,0.3]
[1644794144579,1.04736041,2879.3,2878.4,0.3]
[1644794144580,0.87376041,2879.1,2878.4,0.3]
[1644794144779,0.1736,2879.0,2878.3,0.3]
[1644794144978,0.1736,2879.0,2878.4,3.5]
[1644794144979,1.05124723,2879.0,2878.4,3.5]
[1644794145179,0.87764723,2879.0,2878.4,3.5]
[1644794145380,0.0062354,2878.8,2878.4,3.8]
[1644794146219,0.00388682,2879.1,2878.5,1.0]
[1644794146425,0.00388682,2879.2,2878.6,0.86882]
[1644794146624,0.00388682,2879.2,2878.6,1.16882]
[1644794146625,3.54e-05,2878.7,2878.6,1.16882]
[1644794146823,3.54e-05,2878.7,2878.6,21.46882]
[1644794147019,3.54e-05,2878.7,2878.6,22.14342]
[1644794147219,3.54e-05,2878.7,2878.6,23.14342]
[1644794147419,0.87764723,2879.7,2878.6,23.14342]
[1644794147622,0.87764723,2879.7,2878.8,0.8686]
[1644794147821,0.87764723,2879.7,2878.9,20.6]
[1644794148021,0.87764723,2879.7,2878.9,1.25562104]
[1644794148221,0.00388682,2879.7,2879.0,1.0]
[1644794148421,0.89075123,2879.8,2878.9,1.25562104]
[1644794148826,0.89075123,2879.8,2879.0,0.8685869]
[1644794149028,0.89075123,2879.8,2879.2,0.86857]
[1644794149029,0.00649139,2879.5,2879.2,0.86857]
[1644794149227,0.00649139,2879.5,2879.3,0.3]
[1644794149892,0.013104,2879.8,2879.3,20.9]
[1644794150090,0.013104,2879.8,2879.5,2.03716365]
[1644794150293,0.013104,2879.8,2879.6,20.6]
[1644794150494,4e-06,2879.8,2879.6,20.6]
[1644794150692,4e-06,2879.8,2879.7,21.3]
[1644794150893,4e-06,2879.8,2879.7,1.3]
[1644794151091,0.04093049,2879.8,2879.7,0.3]
[1644794151294,0.1736,2880.4,2879.7,0.3]
[1644794151295,0.1736,2880.4,2880.3,2.0367182]
[1644794151492,1.04968721,2880.5,2880.3,2.6053071]
[1644794151699,0.1734,2880.4,2880.3,2.6053071]
[1644794152098,0.8788678,2880.8,2880.3,22.9053071]
[1644794152296,0.0067936,2881.9,2880.7,5.0]
[1644794152297,1.75750846,2881.7,2880.7,5.0]
[1644794152496,0.0554736,2881.9,2881.3,0.0120562]
[1644794152497,1.72225289,2881.9,2881.3,0.0120562]
[1644794152697,0.0135872,2881.9,2881.3,0.5130562]
[1644794152897,0.01693616,2882.2,2881.5,22.3]
[1644794153094,0.013401,2883.0,2881.4,3.5]
[1644794153095,0.04175,2882.7,2882.2,2.0169]
[1644794153333,0.04001,2882.9,2882.3,0.86764]
[1644794153532,0.013401,2883.0,2882.4,22.03517]
[1644794153733,0.013401,2883.0,2882.4,23.13617]
[1644794153928,0.013401,2883.0,2882.5,1.0]
[1644794154129,0.013401,2883.0,2882.6,1.36579737]
[1644794154338,0.3158,2883.5,2882.7,20.3]
[1644794154529,0.3158,2883.5,2882.9,24.6366276]
[1644794154731,0.3158,2883.5,2883.0,0.86736]
[1644794154930,0.3158,2883.5,2882.9,0.3]
[1644794154931,0.03132,2883.4,2882.9,0.3]
[1644794155138,0.03132,2883.4,2882.3,6.10245]
[1644794155331,0.03132,2883.4,2882.4,22.3353367]
[1644794155634,0.3158,2883.5,2883.0,0.86752]
[1644794155832,0.3158,2883.5,2882.9,0.3]
[1644794156228,0.0113784,2883.4,2882.7,0.4734]
[1644794156429,0.0113784,2883.4,2882.8,0.86765]
[1644794156833,0.0113784,2883.4,2882.9,1.16766]
[1644794157074,0.02117536,2883.6,2882.9,4.66766]
[1644794157473,0.01137855,2883.3,2883.0,1.73498]
[1644794157672,0.01137855,2883.3,2882.9,3.8]
[1644794158077,0.01137855,2883.3,2882.9,3.5]
[1644794158078,5.0,2883.2,2882.9,3.5]
[1644794158274,1.0,2883.5,2882.9,3.5]
[1644794158473,1.05061,2883.5,2882.9,3.5]
[1644794158773,0.01137871,2883.2,2882.9,3.5]
[1644794159073,1.09467363,2883.1,2882.9,3.5]
[1644794159271,1.09467363,2883.1,2882.9,3.8]
[1644794159874,1.10605241,2883.1,2882.9,3.8]
[1644794160272,1.10605241,2883.1,2882.9,3.5]
[1644794160727,1.09467363,2883.1,2882.9,3.5]
[1644794160924,1.91845,2883.5,2882.9,3.5]
[1644794161124,0.01116543,2883.1,2882.9,3.5]
[1644794161323,0.05061,2883.0,2882.9,1.82155996]
[1644794161521,0.05061,2883.0,2882.9,2.12155996]
[1644794162127,0.05061,2883.3,2882.9,2.12155996]
[1644794162325,0.0111655,2883.1,2883.0,3.22886172]
[1644794162621,0.0111655,2883.1,2882.9,2.12155996]
[1644794163229,5.05068,2883.4,2882.9,2.12155996]
[1644794163723,0.01116543,2883.1,2882.9,2.12155996]
[1644794164575,0.05068,2883.4,2882.9,2.12155996]
[1644794164784,0.01078803,2883.1,2882.9,2.42155996]
[1644794164978,0.01078803,2883.1,2883.0,0.1734]
[1644794165180,8.803e-05,2883.1,2883.0,0.1734]
[1644794165575,0.02117536,2883.6,2883.0,0.1734]
[1644794165777,0.02117536,2883.6,2883.1,0.8674927]
[1644794166080,0.02117536,2883.6,2883.2,0.3]
[1644794166475,0.02117536,2883.6,2883.3,1.7348268]
[1644794166678,0.02117536,2883.6,2883.3,2.0348268]
[1644794166877,0.02117536,2883.6,2883.4,0.91321121]
[1644794167078,0.02117536,2883.6,2883.5,3.25112194]
[1644794167284,0.02117536,2883.6,2883.5,3.72452194]
[1644794167478,0.02117536,2883.6,2883.5,0.4734]
[1644794168079,0.02117536,2883.6,2883.5,0.04393993]
[1644794169932,0.02117536,2883.6,2882.9,0.86771]
[1644794170133,0.02117536,2883.6,2882.1,2.60304]
[1644794170134,5.1734,2883.5,2882.1,2.60304]
[1644794170326,0.417,2883.4,2882.1,2.60304]
[1644794170526,0.417,2883.4,2882.2,0.1734]
[1644794170527,0.42091902,2883.4,2882.2,0.1734]
[1644794170728,0.42091902,2883.4,2882.2,1.04121]
[1644794170927,0.01138238,2883.2,2882.2,1.04121]
[1644794171125,0.01138238,2883.2,2882.4,1.7355]
[1644794171326,0.01138238,2883.2,2882.4,2.0355]
[1644794171729,0.42091902,2883.4,2882.4,2.0355]
[1644794171967,0.01138238,2883.2,2882.4,2.0355]
[1644794172367,0.0153014,2883.2,2882.6,0.86773]
[1644794172769,0.01138238,2883.2,2882.7,0.3]
[1644794172967,0.17731902,2883.3,2882.7,0.3]
[1644794173169,0.17731902,2883.3,2882.4,1.7355]
[1644794173170,0.01077705,2883.2,2882.4,2.0355]
[1644794173972,0.01077705,2883.2,2882.4,1.7355]
[1644794174173,1.51197363,2883.3,2882.0,1.04138]
[1644794174174,0.417,2883.1,2882.0,1.04138]
[1644794174369,0.42091902,2883.0,2882.0,0.86798]
[1644794174770,0.86798,2882.9,2882.0,0.86798]
[1644794174971,1.04871274,2882.8,2882.0,0.86798]
[1644794175176,0.00391902,2882.8,2882.0,0.86798]
[1644794175369,0.00391902,2882.8,2882.0,1.16798]
[1644794175570,0.00391902,2882.8,2882.2,0.86786]
[1644794175824,0.00391902,2882.8,2882.2,2.0357102]
[1644794176023,0.00391902,2882.8,2881.4,2.6035309]
[1644794176024,0.1734,2882.7,2881.4,2.6035309]
[1644794176224,0.1734,2882.7,2881.8,1.19272775]
[1644794176422,0.00391902,2882.6,2881.9,3.5]
[1644794176621,0.00391902,2882.8,2881.8,1.19272775]
[1644794176823,0.25,2883.4,2882.0,1.7357884]
[1644794176824,0.00391902,2883.0,2882.0,1.7357884]
[1644794177020,0.1734,2883.1,2882.0,1.7357184]
[1644794177219,0.00391902,2883.0,2882.1,0.3]
[1644794177421,0.87183902,2883.0,2882.0,1.1679184]
[1644794177625,0.87183902,2883.0,2882.0,2.0356339]
[1644794177626,0.00391902,2883.0,2882.0,2.0356339]
[1644794177826,0.00391902,2883.2,2882.0,2.0356339]
[1644794178124,0.01473599,2883.2,2882.2,1.73575]
[1644794178321,0.01473599,2883.2,2882.2,2.03575]
[1644794178520,0.01473599,2883.2,2882.2,0.6]
[1644794178922,0.01473599,2883.2,2882.4,0.86782]
[1644794178923,0.00391902,2883.2,2882.4,0.86782]
[1644794179124,0.01473647,2883.2,2882.5,3.27634529]
[1644794179323,0.01473647,2883.2,2882.5,0.3]
[1644794179569,0.01081745,2883.2,2882.5,0.3]
[1644794180171,0.1734,2883.3,2882.6,1.73536]
[1644794180379,0.01081509,2883.2,2882.7,5.5233353]
[1644794180574,0.01473411,2883.2,2882.7,6.1233353]
[1644794180770,0.01081509,2883.2,2882.7,6.1233353]
[1644794181373,0.02117536,2883.6,2883.0,0.86753]
[1644794181573,0.01081533,2883.2,2883.1,1.7350475]
[1644794181970,0.01081533,2883.2,2883.1,2.0350475]
[1644794182370,0.01081533,2883.2,2883.1,0.86754]
[1644794182573,0.02509438,2883.6,2883.1,2.60256]
[1644794182779,0.001,2884.2,2883.4,0.3]
[1644794182780,0.0432524,2884.0,2883.4,0.3]
[1644794182980,0.0432524,2884.0,2883.4,24.1]
[1644794183236,7.471,2885.1,2883.6,22.35]
[1644794183524,0.001,2885.0,2883.7,0.4733]
[1644794183722,0.001,2885.0,2883.7,3.9733]
[1644794183923,0.001,2885.0,2884.0,0.89127457]
[1644794184126,0.001,2885.0,2884.2,0.86708]
[1644794184327,0.315,2885.2,2884.2,0.3]
[1644794184525,0.732,2885.2,2884.2,0.3]
[1644794184725,0.732,2885.2,2883.7,3.9733]
[1644794184924,0.732,2885.2,2883.7,0.4733]
[1644794185126,0.732,2885.2,2884.2,0.8672554]
[1644794185326,0.732,2885.2,2884.4,0.86726]
[1644794185727,0.732,2885.2,2884.5,0.3]
[1644794185926,0.314,2885.2,2884.5,0.24502525]
[1644794186126,0.314,2885.2,2884.3,1.73436]
[1644794186327,0.314,2885.2,2884.7,0.86704]
[1644794186526,0.314,2885.2,2884.7,1.73404]
[1644794187374,0.314,2885.2,2884.8,2.9010234]
[1644794187576,0.0113847,2885.1,2884.9,5.87223308]
[1644794187773,0.0113847,2885.1,2884.9,6.17223308]
[1644794188472,0.0113847,2885.1,2884.9,3.7675737]
[1644794188673,0.314,2885.2,2885.0,0.86697]
[1644794188875,0.01138462,2885.1,2885.0,0.86697]
[1644794189073,0.01138462,2885.1,2884.9,1.16677]
[1644794189276,0.27538462,2885.2,2884.9,0.3]
[1644794189675,0.27538462,2885.2,2884.6,0.86712]
[1644794189874,0.27538462,2885.2,2884.6,1.16712]
[1644794190475,0.27538462,2885.2,2884.7,0.86716]
[1644794190737,0.27538462,2885.2,2884.8,0.3]
[1644794191321,0.27538462,2885.2,2884.7,3.30413907]
[1644794191525,0.008876,2885.5,2884.9,1.73387]
[1644794191724,0.008876,2885.5,2885.0,5.44534427]
[1644794192122,0.008876,2885.5,2885.1,2.6001]
[1644794192322,0.008876,2885.5,2885.3,0.86669]
[1644794192521,0.01138422,2885.4,2885.3,2.60011]
[1644794192723,0.01138422,2885.4,2885.3,5.99447083]
[1644794192922,8.422e-05,2885.4,2885.3,5.99447083]
[1644794193124,0.008876,2885.5,2885.4,2.05]
[1644794193332,0.008876,2885.5,2885.4,5.64276315]
[1644794193930,0.008876,2885.5,2885.4,2.35]
[1644794195975,0.008876,2885.5,2885.4,4.0833]
[1644794196370,0.008876,2885.5,2885.4,7.5833]
[1644794196571,0.008876,2885.5,2885.4,4.0833]
[1644794198326,0.0176611,2886.0,2885.4,24.5564]
[1644794198528,8.391e-05,2885.6,2885.5,4.54643537]
[1644794198818,0.06286494,2886.3,2885.6,2.05]
[1644794199019,0.06286494,2886.3,2886.2,1.03637451]
[1644794199220,0.0170117,2886.6,2886.2,1.90279451]
[1644794199419,0.02080597,2887.1,2886.3,2.05]
[1644794199619,0.00600827,2887.1,2886.3,3.7825729]
[1644794199820,0.00600827,2887.1,2886.3,2.9162729]
[1644794199821,0.0020856,2887.1,2886.3,2.9162729]
[1644794200019,0.04092649,2887.0,2886.4,1.73255]
[1644794200320,0.04035807,2886.9,2886.7,1.76691763]
[1644794200523,0.04035807,2886.9,2886.7,2.06691763]
[1644794200720,0.04035807,2886.9,2886.7,3.79955653]
[1644794200918,0.04035807,2886.9,2886.7,2.8989689]
[1644794201123,0.04035807,2886.9,2886.7,2.0326389]
[1644794201721,0.04035807,2886.9,2886.7,2.8989589]
[1644794201964,0.04035807,2886.9,2886.7,3.78777022]
[1644794202168,0.05173984,2886.9,2886.7,3.78777022]
[1644794202768,0.05173984,2886.9,2886.7,7.28777022]
[1644794202970,0.04035807,2886.9,2886.7,7.28777022]
[1644794203472,0.05173984,2886.9,2886.7,4.36631]
[1644794203676,0.05173984,2886.9,2886.7,1.23073327]
[1644794204269,0.04035807,2886.9,2886.7,1.23073327]
[1644794204469,0.05173984,2886.9,2886.7,1.23073327]
[1644794204869,0.05173984,2886.9,2886.7,1.53073327]
[1644794205470,0.04035807,2886.9,2886.7,1.53073327]
[1644794205735,0.05173984,2886.9,2886.7,1.53073327]
[1644794206127,2.05,2886.8,2886.0,1.7331923]
[1644794206331,2.05392267,2886.8,2885.7,0.86681]
[1644794206522,2.05392267,2886.8,2885.5,0.86681]
[1644794206523,0.001,2886.7,2885.5,0.86681]
[1644794206723,0.418,2886.7,2885.4,5.2336597]
[1644794206920,0.00392267,2886.6,2885.4,5.2336597]
[1644794207121,1.18175696,2886.3,2886.2,0.01138418]
[1644794207321,1.18275696,2886.3,2886.2,0.01138418]
[1644794207520,1.48275696,2886.3,2886.2,0.01138418]
[1644794207722,1.18275696,2886.3,2886.2,0.01138418]
[1644794207922,1.18275696,2886.3,2885.1,0.1731]
[1644794208120,1.18275696,2886.3,2886.1,0.01138379]
[1644794208121,0.00492267,2886.2,2886.1,0.01138379]
[1644794208321,0.001,2886.2,2886.1,0.01138379]
[1644794209122,1.00492267,2886.5,2885.6,2.0335]
[1644794209324,0.01187342,2886.4,2886.0,0.01087508]
[1644794209577,0.01187342,2886.4,2886.1,0.8665946]
[1644794209779,0.01087342,2886.4,2886.1,0.8665946]
[1644794209976,0.01087342,2886.4,2886.1,2.0332546]
[1644794210375,0.04035807,2886.9,2886.1,1.16666]
[1644794210601,0.01087366,2886.4,2886.2,2.5997853]
[1644794210777,0.01087366,2886.4,2886.3,0.3]
[1644794211179,0.01087366,2886.4,2886.3,3.56073995]
[1644794211180,7.366e-05,2886.4,2886.3,3.56073995]
[1644794211378,7.366e-05,2886.4,2886.3,4.73383995]
[1644794211580,0.04035807,2886.9,2886.3,4.73383995]
[1644794211785,0.04035807,2886.9,2886.4,2.77214]
[1644794211982,0.04035807,2886.9,2886.5,0.86635]
[1644794212176,0.04035807,2886.9,2886.6,0.3]
[1644794213235,0.04035807,2886.9,2886.6,6.28507457]
[1644794213432,5.807e-05,2886.9,2886.6,9.78507457]
[1644794213936,5.807e-05,2886.9,2886.6,30.08507457]
[1644794214138,7.84e-06,2886.9,2886.8,20.3]
[1644794214333,7.84e-06,2886.9,2886.8,22.8830452]
[1644794214532,8.56e-05,2887.1,2886.9,20.3]
[1644794214731,8.56e-05,2887.1,2886.9,22.0321]
[1644794214934,0.04322487,2887.3,2887.0,2.05]
[1644794215133,0.0175295,2887.6,2887.1,1.95827759]
[1644794215331,0.0175295,2887.6,2887.1,3.12434469]
[1644794215533,0.0175295,2887.6,2887.2,0.86608]
[1644794216131,0.0175295,2887.6,2887.3,3.402649]
[1644794216334,0.0175295,2887.6,2887.3,5.434829]
[1644794216741,0.0175295,2887.6,2887.2,4.3304246]
[1644794216974,0.0175295,2887.6,2886.8,1.73273]
[1644794217371,0.0175295,2887.6,2886.9,0.8664]
[1644794217970,0.0175295,2887.6,2887.1,1.7325375]
[1644794218169,0.0175295,2887.6,2887.2,0.3]
[1644794218575,0.0175295,2887.6,2887.2,1.16632]
[1644794218975,0.0175295,2887.6,2887.3,1.7325239]
[1644794219174,0.01081101,2887.5,2887.4,1.7322481]
[1644794219375,0.01081101,2887.5,2887.4,2.0322481]
[1644794220073,0.0175295,2887.6,2887.4,2.0322481]
[1644794220272,0.0243104,2887.6,2887.4,3.7645181]
[1644794220477,0.0243104,2887.6,2887.4,4.6306213]
[1644794221126,7.4876152,2888.7,2887.6,4.6480786]
[1644794221328,0.03880317,2888.5,2888.2,1.0095738]
[1644794221521,0.0348805,2888.5,2888.2,2.0316837]
[1644794221925,0.0348805,2888.5,2888.2,2.8975337]
[1644794222519,0.0348805,2888.5,2888.2,2.0316737]
[1644794222719,0.0348805,2888.5,2888.3,1.04108612]
[1644794222919,0.0348805,2888.5,2888.3,0.86588]
[1644794223822,0.04626428,2888.5,2888.2,2.0316737]
[1644794224021,0.04626428,2888.5,2888.3,1.73176]
[1644794224874,0.0176152,2888.7,2888.4,3.31387808]
[1644794225073,0.0176152,2888.7,2888.4,5.93794685]
[1644794225270,8.378e-05,2888.5,2888.4,6.23794685]
[1644794225675,8.378e-05,2888.5,2888.4,8.14652116]
[1644794225874,0.0455283,2889.0,2888.5,2.05]
[1644794226072,0.02747305,2889.4,2888.7,1.73109]
[1644794226273,0.02951785,2889.4,2888.8,4.52704429]
[1644794226471,0.02951785,2889.4,2888.9,1.17291999]
[1644794226673,0.02951785,2889.4,2889.0,3.29751835]
[1644794226872,0.02951785,2889.4,2888.9,0.86562]
[1644794227076,0.02951785,2889.4,2889.0,0.3]
[1644794227273,0.02951785,2889.4,2889.0,1.16561]
[1644794227473,0.02951785,2889.4,2888.8,0.3]
[1644794227674,0.02951785,2889.4,2888.6,0.3]
[1644794227873,0.02951785,2889.4,2888.8,0.8658]
[1644794228078,0.03051785,2889.4,2888.8,3.46257]
[1644794228327,0.03051785,2889.4,2888.9,21.16584]
[1644794228328,0.02559518,2889.4,2888.9,21.16584]
[1644794228521,0.02559518,2889.4,2888.9,0.8658046]
[1644794228921,0.01138767,2889.2,2888.9,2.7696346]
[1644794229324,0.01138767,2889.2,2888.9,5.3657946]
[1644794229325,0.01343247,2889.2,2888.9,5.3657946]
[1644794229523,0.01343247,2889.2,2889.0,2.03088]
[1644794229828,0.0020448,2889.2,2889.0,2.03088]
[1644794230022,0.01343255,2889.2,2889.0,2.03088]
[1644794230827,3.255e-05,2889.2,2889.1,3.5]
[1644794231127,0.01232896,2889.6,2889.1,3.7810923]
[1644794231325,0.0186358,2890.7,2889.1,6.4155423]
[1644794231523,0.0186358,2890.7,2889.9,1.06807691]
[1644794231724,0.0186358,2890.7,2889.9,1.21972614]
[1644794231980,0.0186358,2890.7,2889.6,0.86541]
[1644794231981,0.0176358,2890.7,2889.6,0.86541]
[1644794232180,5.0,2890.6,2889.0,7.2324641]
[1644794232380,5.0,2890.6,2889.1,1.73124]
[1644794232381,1.001,2890.5,2889.1,1.73124]
[1644794232577,1.001,2890.5,2889.1,3.46258]
[1644794232775,0.001,2890.4,2889.1,3.46258]
[1644794232975,1.06113018,2890.2,2889.1,3.46258]
[1644794233275,0.001,2890.1,2889.4,0.3]
[1644794233477,0.01138659,2889.8,2889.5,0.01138792]
[1644794234281,0.01138659,2889.8,2889.7,0.3]
[1644794234579,0.01138659,2889.8,2889.7,1.39768384]
[1644794234580,0.068738,2889.8,2889.7,1.39768384]
[1644794234780,0.08012459,2889.8,2889.7,4.81376365]
[1644794234985,1.0185825,2890.8,2889.8,2.06871341]
[1644794234986,0.0175825,2890.8,2889.8,2.06871341]
[1644794235193,0.0175825,2890.8,2890.0,0.8654556]
[1644794235383,0.0175825,2890.8,2890.0,0.3]
[1644794235580,0.0175825,2890.8,2890.1,0.86525]
[1644794235836,0.0175825,2890.8,2890.1,1.16518]
[1644794236030,0.0175825,2890.8,2890.0,0.3]
[1644794236328,0.0175825,2890.8,2889.9,0.13819997]
[1644794236528,0.0175825,2890.8,2890.0,0.86543]
[1644794236829,0.0175825,2890.8,2890.2,0.86523]
[1644794237233,0.0175825,2890.8,2890.3,0.3]
[1644794237636,0.0175825,2890.8,2889.9,0.86547]
[1644794238028,0.8655,2890.7,2890.0,0.86547]
[1644794238431,1.73414084,2890.7,2890.2,0.01141206]
[1644794238927,2.73414084,2890.7,2890.2,0.01141206]
[1644794239478,0.0175825,2890.8,2890.2,0.86542]
[1644794239676,0.01141016,2890.7,2890.3,0.31141189]
[1644794240083,0.01141016,2890.7,2890.4,0.8653567]
[1644794240380,0.01141016,2890.7,2890.4,1.1653567]
[1644794240577,0.0175825,2890.8,2890.4,1.1653567]
[1644794240780,0.01141039,2890.7,2890.4,2.04212843]
[1644794240975,0.01141039,2890.7,2890.4,1.17677173]
[1644794241176,0.01141039,2890.7,2890.4,2.04213273]
[1644794241576,0.01141039,2890.7,2890.4,1.17677273]
[1644794241778,0.0175825,2890.8,2890.4,1.165361]
[1644794241978,0.0066534,2890.7,2890.4,1.165361]
[1644794242581,0.0066534,2890.7,2890.5,1.73037]
[1644794242778,5.34e-05,2890.7,2890.5,6.6839153]
[1644794242983,0.0175825,2890.8,2890.5,3.4606899]
[1644794243229,8.25e-05,2890.8,2890.6,4.12606486]
[1644794243421,8.25e-05,2890.8,2890.7,24.05559294]
[1644794243621,8.25e-05,2890.8,2890.7,24.35559294]
[1644794244121,8.25e-05,2890.8,2890.7,0.3]
[1644794244523,8.25e-05,2890.8,2890.6,2.0300316]
[1644794244724,8.25e-05,2890.8,2890.6,1.16503]
[1644794245825,8.25e-05,2890.8,2890.6,3.5]
[1644794246225,5.0,2890.7,2890.6,3.5]
[1644794246424,0.4170825,2890.8,2890.6,3.5]
[1644794246624,1.0,2890.7,2890.6,3.5]
[1644794246827,0.84390205,2890.7,2890.6,3.05717644]
[1644794247497,1.14390205,2890.7,2890.6,3.05717644]
[1644794247697,2.14390205,2890.7,2890.6,3.05717644]
[1644794247898,2.14390205,2890.7,2890.6,1.79162902]
[1644794248098,1.84390205,2890.7,2890.6,1.79162902]
[1644794248798,1.86143945,2890.7,2890.6,1.79162902]
[1644794249199,1.81143945,2890.7,2890.6,1.79162902]
[1644794249403,1.0175374,2890.7,2890.6,2.09162902]
[1644794249601,0.0175374,2890.7,2890.6,2.09162902]
[1644794250739,0.0175374,2890.7,2890.6,1.79162902]
[1644794250740,5.0175374,2890.7,2890.6,1.79162902]
[1644794250934,0.0185374,2890.7,2890.6,1.79162902]
[1644794251731,0.0175374,2890.7,2890.6,1.79162902]
[1644794251931,0.0175374,2890.7,2890.6,2.09162902]
[1644794253131,0.8829674,2890.7,2890.6,2.09162902]
[1644794253328,1.8839674,2890.7,2890.6,2.09162902]
[1644794253731,0.0185374,2890.7,2890.6,2.09162902]
[1644794253929,0.0175374,2890.7,2890.6,2.09162902]
[1644794255176,0.0175374,2890.7,2890.6,1.03089712]
[1644794255378,0.4345374,2890.7,2890.5,0.0114167]
[1644794255578,5.4345374,2890.7,2890.5,0.0114167]
[1644794255877,0.86652,2890.6,2890.5,0.0114167]
[1644794256179,3.68639886,2890.6,2889.3,3.72669997]
[1644794256375,5.00494805,2890.5,2889.3,3.72669997]
[1644794256581,0.02148545,2890.5,2890.4,0.01041678]
[1644794256773,0.4345374,2890.5,2890.4,0.01041678]
[1644794257379,0.0175374,2890.5,2889.5,0.1729]
[1644794257574,0.00394805,2890.4,2889.7,20.3]
[1644794257778,0.0175374,2890.5,2890.0,0.3]
[1644794257974,0.0175374,2890.5,2890.4,3.5]
[1644794258234,0.0175374,2890.5,2890.4,3.9729]
[1644794258424,0.0175374,2890.5,2890.4,3.9229]
[1644794258626,0.0175374,2890.5,2890.4,3.75]
[1644794259224,0.0175374,2890.5,2890.4,3.9229]
[1644794260024,0.0175374,2890.5,2890.4,3.75]
[1644794261225,0.0175374,2890.5,2890.4,3.9229]
[1644794262270,0.0175374,2890.5,2890.4,3.75]
[1644794262670,0.0175374,2890.5,2890.4,3.67500001]
[1644794263672,3.74e-05,2890.5,2890.4,3.84790001]
[1644794263873,3.74e-05,2890.5,2890.4,4.14790001]
[1644794264672,3.74e-05,2890.5,2890.4,24.44790001]
[1644794264873,3.74e-05,2890.5,2890.4,25.31303001]
[1644794265731,0.02894475,2890.8,2890.6,20.6]
[1644794265923,0.00494805,2891.4,2890.8,22.4]
[1644794266124,0.00394805,2891.4,2890.8,22.4]
[1644794267226,0.00394805,2891.4,2891.3,0.3]
[1644794267522,0.035336,2891.8,2891.3,1.55]
[1644794267727,5.8364495,2892.8,2891.6,0.01233113]
[1644794267728,0.00395719,2891.9,2891.6,0.01233113]
[1644794267927,0.0023322,2892.3,2891.6,0.01233113]
[1644794268125,0.0023322,2892.3,2891.8,21.16461]
[1644794268324,0.0023322,2892.3,2891.9,24.6228898]
[1644794268525,0.0023322,2892.3,2892.0,0.3]
[1644794268725,3.22e-05,2892.3,2892.1,21.21391675]
[1644794268928,0.0176495,2892.8,2892.5,20.3]
[1644794269231,0.0223139,2892.8,2892.5,20.9]
[1644794269485,0.0178651,2893.3,2892.6,21.33721]
[1644794269486,1.70442699,2893.3,2892.6,21.33721]
[1644794269688,0.0093288,2893.2,2892.6,21.33721]
[1644794269889,0.0093288,2893.2,2892.8,0.9235561]
[1644794270084,0.0093288,2893.2,2892.6,20.4728]
[1644794270283,0.0093288,2893.2,2892.6,0.1728]
[1644794270886,0.0157763,2893.9,2892.8,20.3]
[1644794271089,0.0230863,2893.9,2893.6,0.01245715]
[1644794271491,0.01462,2894.2,2893.8,20.31284089]
[1644794271686,0.0135656,2894.5,2894.1,20.3]
[1644794271894,0.0135656,2894.5,2894.0,0.3]
[1644794272284,0.0135656,2894.5,2893.9,0.4726]
[1644794272486,0.0135656,2894.5,2893.9,0.1726]